Workbook

Sheet Лист1
B2: УТВЕРЖДАЮ:
B3: Директор ООО "Нигма"
B5: __________________ / Л.Р. Гильфанова
C7: Двухнедельное меню для учащихся с 11 до 18 лет в общеобразовательных организациях с 5-11 классы на 2022 уч.году
B10: № рецептуры | C10: Наименование блюд | F10: Выход | G10: Белки, г | H10: Жиры, г | I10: Углеводы, г | J10: Калорийность, | K10: Витамин В1, мг | L10: Витамин С, мг | M10: Витамин А, мг | N10: Витамин Е, мг | O10: Са, мг | P10: Р, мг | Q10: Mg, мг | R10: Fe, мг
C11: 1-ая неделя
C12: 1 день
B13: 45/2017 | C13: Салат из свежей капусты | F13: 100 | G13: 1.31 | H13: 3.25 | I13: 6.47 | J13: 60.4 | K13: 0.02 | L13: 17.1 | M13: 0.01 | N13: 0.03 | O13: 24.97 | P13: 28.31 | Q13: 15.09 | R13: 0.47
B14: ТТК №26 | C14: Котлеты Татарские п/ф с овощами (фасоль стручковая) | F14: 75/25 | G14: 9.390 | H14: 10.660 | I14: 9.890 | J14: 221.43 | K14: 0.100 | L14: 2.640 | M14: 0.010 | N14: 0.230 | O14: 30.830 | P14: 94.760 | Q14: 16.270 | R14: 1.070
B15: 173/2017 | C15: Каша гречневая вязкая | F15: 180/5 | G15: 7.990 | H15: 10.830 | I15: 41.000 | J15: 204 | K15: 0.350 | L15: 0.000 | M15: 0 | N15: 0.621 | O15: 44.800 | P15: 204.700 | Q15: 53.500 | R15: 1.321
B16: ТТК №13 | C16: Чай полусладкий с молоком | F16: 200 | G16: 1.630 | H16: 1.250 | I16: 7.180 | J16: 46 | K16: 0.015 | L16: 0.540 | M16: 0.01 | N16: 0.000 | O16: 76.500 | P16: 48.700 | Q16: 8.800 | R16: 0.430
B17: 1/2017 | C17: Хлеб Ржаной | F17: 30 | G17: 1.5 | H17: 0.3 | I17: 13.50 | J17: 66 | K17: 0.021 | L17: 0.00 | M17: 0.00 | N17: 0.162 | O17: 4.14 | P17: 19.10 | Q17: 4.5 | R17: 0.558
B18: 1/2017 | C18: Хлеб Пшеничный | F18: 50 | G18: 3.800 | H18: 0.400 | I18: 24.600 | J18: 118 | K18: 0.055 | L18: 0 | M18: 0 | N18: 0.550 | O18: 10.000 | P18: 32.500 | Q18: 7.000 | R18: 0.550
E19: Итого | G19: =SUM(G13:G18) -> 25.62 | H19: 26.690 | I19: 102.64 | J19: 716 | K19: 0.561 | L19: 20.28 | M19: 0.03 | N19: 1.593 | O19: 191.24 | P19: 428.07 | Q19: 105.2 | R19: 4.399
C21: 2 день
B22: 24/2017 | C22: Салат из свежих помидоров и огурцов | F22: 100 | G22: 4.330 | H22: 8.43 | I22: 8.230 | J22: 93.33 | K22: 0.020 | L22: 8.630 | M22: 0 | N22: 2.3 | O22: 42.100 | P22: 31 | Q22: 14.400 | R22: 0.02
B23: 289/2017 | C23: Рагу из птицы | F23: 75/150 | G23: 13.840 | H23: 19.870 | I23: 33.580 | J23: 352.100 | K23: 0.226 | L23: 9.855 | M23: 0.202 | N23: 2.360 | O23: 65.000 | P23: 227.000 | Q23: 29.700 | R23: 0.125
B24: ТТК №1 | C24: Чай полусладкий | F24: 200 | G24: 0.200 | H24: 0.000 | I24: 5.060 | J24: 21.04 | K24: 0.000 | L24: 0.000 | M24: 0.100 | N24: 0.000 | O24: 9.970 | P24: 7.500 | Q24: 6.500 | R24: 0.197
B25: 1/2017 | C25: Хлеб Ржаной | F25: 30 | G25: 1.5 | H25: 0.3 | I25: 13.50 | J25: 66 | K25: 0.021 | L25: 0.00 | M25: 0.00 | N25: 0.162 | O25: 4.14 | P25: 19.10 | Q25: 4.5 | R25: 0.558
B26: 1/2017 | C26: Хлеб Пшеничный | F26: 50 | G26: 3.800 | H26: 0.400 | I26: 24.600 | J26: 118 | K26: 0.055 | L26: 0 | M26: 0 | N26: 0.550 | O26: 10.000 | P26: 32.500 | Q26: 7.000 | R26: 0.550
E27: Итого | G27: =SUM(G22:G26) -> 23.670 | H27: 29.00 | I27: 84.970 | J27: 650.77 | K27: 0.322 | L27: 18.485 | M27: 0.302 | N27: 5.372 | O27: 131.21 | P27: 317.1 | Q27: 62.10 | R27: 1.45
C29: 3 день
B30: 71/2017 | C30: Огурцы свежие порционно | F30: 50 | G30: 0.350 | H30: 0.05 | I30: 0.950 | J30: 6 | K30: 0.020 | L30: 2.45 | M30: 0 | N30: 0.04 | O30: 8.5 | P30: 15 | Q30: 7.00 | R30: 0.25
B31: 290/2017 | C31: Мякоть птицы тушенная в соусе | F31: 50/50 | G31: 11.650 | H31: 10.756 | I31: 11.632 | J31: 164 | K31: 0.168 | L31: 6.326 | M31: 0.000 | N31: 0.956 | O31: 85.185 | P31: 163.198 | Q31: 15.716 | R31: 1.800
B32: 203/2017 | C32: Макароны отварные с маслом | F32: 180/5 | G32: 6.120 | H32: 5.360 | I32: 34.200 | J32: 241.4 | K32: 0.104 | L32: 0.000 | M32: 0.120 | N32: 0.980 | O32: 19.750 | P32: 68.410 | Q32: 10.170 | R32: 1.043
B33: 377/2017 | C33: Чай с лимоном (полусладкий) | F33: 200/10/7 | G33: 0.270 | H33: 0.060 | I33: 15.230 | J33: 63 | K33: 0.003 | L33: 2.800 | M33: 0 | N33: 0.014 | O33: 3.250 | P33: 1.540 | Q33: 0.840 | R33: 0.087
B34: 1/2017 | C34: Хлеб Ржаной | F34: 30 | G34: 1.5 | H34: 0.3 | I34: 13.50 | J34: 66 | K34: 0.021 | L34: 0.00 | M34: 0.00 | N34: 0.162 | O34: 4.14 | P34: 19.10 | Q34: 4.5 | R34: 0.558
B35: 1/2017 | C35: Хлеб Пшеничный | F35: 50 | G35: 3.800 | H35: 0.400 | I35: 24.600 | J35: 118 | K35: 0.055 | L35: 0 | M35: 0 | N35: 0.550 | O35: 10.000 | P35: 32.500 | Q35: 7.000 | R35: 0.550
E36: Итого | G36: =SUM(G30:G35) -> 23.690 | H36: 16.926 | I36: 100.112 | J36: 658.7 | K36: 0.371 | L36: 11.576 | M36: 0.12 | N36: 2.702 | O36: 130.825 | P36: 299.748 | Q36: 45.23 | R36: 4.29
C38: 4 день
B39: 56/2017 | C39: Салат овощной с яблоками | F39: 100 | G39: 3.5 | H39: 6.11 | I39: 9.9 | J39: 124 | K39: 0.01 | L39: 11.31 | M39: 0 | N39: 0.4 | O39: 126.88 | P39: 120.41 | Q39: 41.33 | R39: 1.9
B40: ТТК №22 | C40: Биточки Рябушка п/ф с овощами (зеленый горошек консервированный) | F40: 75/25 | G40: 9.750 | H40: 10.560 | I40: 11.280 | J40: 182.98 | K40: 0.070 | L40: 0.035 | M40: 0.162 | N40: 0.850 | O40: 14.220 | P40: 124.370 | Q40: 26.780 | R40: 1.240
B41: 312/2017 | C41: Картофельное пюре | F41: 180/5 | G41: 3.710 | H41: 9.940 | I41: 26.400 | J41: 206.4 | K41: 0.197 | L41: 9.530 | M41: 0.096 | N41: 0.280 | O41: 57.370 | P41: 118.600 | Q41: 9.600 | R41: 0.000
B42: ТТК №1 | C42: Чай полусладкий | F42: 200 | G42: 0.200 | H42: 0.000 | I42: 5.060 | J42: 21.04 | K42: 0.000 | L42: 0.000 | M42: 0.100 | N42: 0.000 | O42: 9.970 | P42: 7.500 | Q42: 6.500 | R42: 0.197
B43: 1/2017 | C43: Хлеб Ржаной | F43: 30 | G43: 1.5 | H43: 0.3 | I43: 13.50 | J43: 66 | K43: 0.021 | L43: 0.00 | M43: 0.00 | N43: 0.162 | O43: 4.14 | P43: 19.10 | Q43: 4.5 | R43: 0.558
B44: 1/2017 | C44: Хлеб Пшеничный | F44: 50 | G44: 3.800 | H44: 0.400 | I44: 24.600 | J44: 118 | K44: 0.055 | L44: 0 | M44: 0 | N44: 0.550 | O44: 10.000 | P44: 32.500 | Q44: 7.000 | R44: 0.550
B45: 386/2017 | C45: Яблоки свежие | F45: 150 | G45: 0.600 | H45: 0.600 | I45: 11.020 | J45: 71 | K45: 0.040 | L45: 12.00 | M45: 0 | N45: 0.150 | O45: 24.000 | P45: 16.500 | Q45: 13.500 | R45: 0.045
E46: Итого | G46: =SUM(G39:G45) -> 23.06 | H46: 27.91 | I46: 101.76 | J46: 789.22 | K46: 0.393 | L46: 32.875 | M46: 0.358 | N46: 2.392 | O46: 246.580 | P46: 438.98 | Q46: 109.21 | R46: 4.490
C48: 5 день
B49: 71/2017 | C49: Помидоры свежие порционно | F49: 50 | G49: 0.550 | H49: 0.100 | I49: 1.900 | J49: 11.00 | K49: 0.030 | L49: 8.750 | M49: 0.000 | N49: 0.160 | O49: 7.000 | P49: 13.0 | Q49: 10 | R49: 0.450
B50: ТТК №26 | C50: Котлеты Татарские п/ф с овощами (фасоль стручковая) | F50: 75/25 | G50: 9.390 | H50: 10.660 | I50: 9.890 | J50: 221.43 | K50: 0.100 | L50: 2.640 | M50: 0.010 | N50: 0.230 | O50: 30.830 | P50: 94.760 | Q50: 16.270 | R50: 1.070
B51: 174/2017 | C51: Каша рисовая вязкая | F51: 180/5 | G51: 2.770 | H51: 5.000 | I51: 27.600 | J51: 166 | K51: 0.020 | L51: 0.000 | M51: 0.000 | N51: 0.220 | O51: 26.310 | P51: 27.600 | Q51: 29.100 | R51: 1.250
B52: ТТК №13 | C52: Чай полусладкий с молоком | F52: 200 | G52: 1.630 | H52: 1.250 | I52: 7.180 | J52: 46 | K52: 0.015 | L52: 0.540 | M52: 0.01 | N52: 0.000 | O52: 76.500 | P52: 48.700 | Q52: 8.800 | R52: 0.430
B53: 1/2017 | C53: Хлеб Ржаной | F53: 30 | G53: 1.5 | H53: 0.3 | I53: 13.50 | J53: 66 | K53: 0.021 | L53: 0.00 | M53: 0.00 | N53: 0.162 | O53: 4.14 | P53: 19.10 | Q53: 4.5 | R53: 0.558
B54: 1/2017 | C54: Хлеб Пшеничный | F54: 50 | G54: 3.800 | H54: 0.400 | I54: 24.600 | J54: 118 | K54: 0.055 | L54: 0 | M54: 0 | N54: 0.550 | O54: 10.000 | P54: 32.500 | Q54: 7.000 | R54: 0.550
E55: Итого | G55: =SUM(G49:G54) -> 19.640 | H55: 17.710 | I55: 84.670 | J55: 628.630 | K55: 0.241 | L55: 11.930 | M55: 0.020 | N55: 1.322 | O55: 154.780 | P55: 235.660 | Q55: 75.67 | R55: 4.308
C56: 6 день
B57: 45/2017 | C57: Салат из свежей капусты | F57: 100 | G57: 1.31 | H57: 3.25 | I57: 6.47 | J57: 60.4 | K57: 0.02 | L57: 17.1 | M57: 0.01 | N57: 0.03 | O57: 24.97 | P57: 28.31 | Q57: 15.09 | R57: 0.47
B58: 243/2017 | C58: Сосиски отварные | F58: 100 | G58: 7.400 | H58: 10.900 | I58: 0.800 | J58: 260 | K58: 0.030 | L58: 0.000 | M58: 0.000 | N58: 0.956 | O58: 35.000 | P58: 163.198 | Q58: 16.000 | R58: 0.000
B59: 203/2017 | C59: Макароны отварные с маслом | F59: 180/5 | G59: 6.120 | H59: 5.360 | I59: 34.200 | J59: 241.4 | K59: 0.104 | L59: 0.000 | M59: 0.120 | N59: 0.980 | O59: 19.750 | P59: 68.410 | Q59: 10.170 | R59: 1.043
B60: ТТК №1 | C60: Чай полусладкий | F60: 200 | G60: 0.200 | H60: 0.000 | I60: 5.060 | J60: 21.04 | K60: 0.000 | L60: 0.000 | M60: 0.100 | N60: 0.000 | O60: 9.970 | P60: 7.500 | Q60: 6.500 | R60: 0.197
B61: 1/2017 | C61: Хлеб Ржаной | F61: 30 | G61: 1.5 | H61: 0.3 | I61: 13.50 | J61: 66 | K61: 0.021 | L61: 0.00 | M61: 0.00 | N61: 0.162 | O61: 4.14 | P61: 19.10 | Q61: 4.5 | R61: 0.558
B62: 1/2017 | C62: Хлеб Пшеничный | F62: 50 | G62: 3.800 | H62: 0.400 | I62: 24.600 | J62: 118 | K62: 0.055 | L62: 0 | M62: 0 | N62: 0.550 | O62: 10.000 | P62: 32.500 | Q62: 7.000 | R62: 0.550
E63: Итого | G63: =SUM(G57:G62) -> 20.330 | H63: 20.210 | I63: 84.630 | J63: 767.140 | K63: 0.230 | L63: 17.100 | M63: 0.230 | N63: 2.678 | O63: 103.830 | P63: 319.018 | Q63: 59.260 | R63: 2.818
E65: Масса порции, гр | F65: Масса порции, гр | G65: Пищевые вещества (гр) Белки | H65: Пищевые вещества (гр) Жиры | I65: Пищевые вещества (гр) Углеводы | J65: Энерг. ценность (ккал) | K65: Витамины (мг) В1 | L65: Витамины (мг) С | M65: Витамины (мг) А | N65: Витамины (мг) Е | O65: Са, мг | P65: Р, мг | Q65: Mg, мг | R65: Fe, мг
C66: ИТОГО ЗА НЕДЕЛЮ: | G66: =SUM(G19+G27+G36+G46+G55+G63) -> 136.0 | H66: =SUM(H19+H27+H36+H46+H55+H63) -> 138.4 | I66: 558.8 | J66: 4210.6 | K66: 2.1 | L66: 112.2 | M66: 1.1 | N66: 16.1 | O66: 958.5 | P66: 2038.6 | Q66: 456.6 | R66: 21.8
C67: В среднем в день: | G67: 22.67 | H67: 23.10 | I67: 93.13 | J67: 701.80 | K67: 0.35 | L67: 18.70 | M67: 0.18 | N67: 2.70 | O67: 159.75 | P67: 339.80 | Q67: 76.10 | R67: 3.60
B69: № рецептуры | C69: Наименование блюд | F69: Выход | G69: Белки, г | H69: Жиры, г | I69: Углеводы, г | J69: Калорийность, | K69: Витамин В1, мг | L69: Витамин С, мг | M69: Витамин А, мг | N69: Витамин Е, мг | O69: Са, мг | P69: Р, мг | Q69: Mg, мг | R69: Fe, мг
C70: 2-ая неделя
C71: 1 день
B72: 53/2017 | C72: Салат из свеклы с зеленым горошком | F72: 100 | G72: 1.650 | H72: 4.12 | I72: 7.290 | J72: 72.9 | K72: 0.040 | L72: 6.86 | M72: 0 | N72: 1.367 | O72: 28.33 | P72: 41.61 | Q72: 18.40 | R72: 1.30
B73: ТТК-9 | C73: Фрикадельки "Особые" с соусом томатным П/Ф | F73: 50/50 | G73: 12.540 | H73: 19.040 | I73: 9.930 | J73: 261.21 | K73: 0.010 | L73: 0.110 | M73: 3.330 | N73: 0.110 | O73: 186.250 | P73: 6.200 | Q73: 25.180 | R73: 1.150
B74: 171/2017 | C74: Каша гречневая рассыпчатая | F74: 180 | G74: 7.990 | H74: 10.830 | I74: 41.000 | J74: 204 | K74: 0.350 | L74: 0.000 | M74: 0 | N74: 0.622 | O74: 44.820 | P74: 204.700 | Q74: 53.460 | R74: 1.321
B75: ТТК №1 | C75: Чай полусладкий | F75: 200 | G75: 0.200 | H75: 0.000 | I75: 5.060 | J75: 21.04 | K75: 0.000 | L75: 0.000 | M75: 0.100 | N75: 0.000 | O75: 9.970 | P75: 7.500 | Q75: 6.500 | R75: 0.197
B76: 1/2017 | C76: Хлеб Ржаной | F76: 30 | G76: 1.5 | H76: 0.3 | I76: 13.50 | J76: 66 | K76: 0.021 | L76: 0.00 | M76: 0.00 | N76: 0.162 | O76: 4.14 | P76: 19.10 | Q76: 4.5 | R76: 0.558
B77: 1/2017 | C77: Хлеб Пшеничный | F77: 50 | G77: 3.800 | H77: 0.400 | I77: 24.600 | J77: 118 | K77: 0.055 | L77: 0 | M77: 0 | N77: 0.550 | O77: 10.000 | P77: 32.500 | Q77: 7.000 | R77: 0.550
E78: Итого | G78: =SUM(G72:G77) -> 27.68 | H78: 34.690 | I78: 101.380 | J78: 743.5 | K78: 0.476 | L78: 6.97 | M78: 3.43 | N78: 2.811 | O78: 283.51 | P78: 311.610 | Q78: 115.040 | R78: 5.076
C80: 2 день
B81: 71/2017 | C81: Огурцы свежие порционно | F81: 50 | G81: 0.350 | H81: 0.05 | I81: 0.950 | J81: 6 | K81: 0.020 | L81: 2.45 | M81: 0 | N81: 0.04 | O81: 8.5 | P81: 15 | Q81: 7.00 | R81: 0.25
B82: 291/2017 | C82: Плов из птицы | F82: 50/150 | G82: 14.510 | H82: 14.710 | I82: 28.340 | J82: 364 | K82: 0.210 | L82: 4.900 | M82: 0.100 | N82: 1.200 | O82: 83.070 | P82: 273.000 | Q82: 40.450 | R82: 1.900
B83: 377/2017 | C83: Чай с лимоном (полусладкий) | F83: 200/10/7 | G83: 0.270 | H83: 0.060 | I83: 15.230 | J83: 63 | K83: 0.003 | L83: 2.800 | M83: 0 | N83: 0.014 | O83: 3.250 | P83: 1.540 | Q83: 0.840 | R83: 0.087
B84: 1/2017 | C84: Хлеб Ржаной | F84: 30 | G84: 1.5 | H84: 0.3 | I84: 13.50 | J84: 66 | K84: 0.021 | L84: 0.00 | M84: 0.00 | N84: 0.162 | O84: 4.14 | P84: 19.10 | Q84: 4.5 | R84: 0.558
B85: 1/2017 | C85: Хлеб Пшеничный | F85: 50 | G85: 3.800 | H85: 0.400 | I85: 24.600 | J85: 118 | K85: 0.055 | L85: 0 | M85: 0 | N85: 0.550 | O85: 10.000 | P85: 32.500 | Q85: 7.000 | R85: 0.550
E86: Итого | G86: =SUM(G81:G85) -> 20.43 | H86: 15.52 | I86: 82.62 | J86: 617.3 | K86: 0.309 | L86: 10.15 | M86: 0.1 | N86: 1.966 | O86: 108.96 | P86: 341.14 | Q86: 59.79 | R86: 3.345
C88: 3 день
B89: ТТК №19 | C89: Салат свежей капусты с помидором | F89: 100 | G89: 1.600 | H89: 4.5 | I89: 4.800 | J89: 65.3 | K89: 0.002 | L89: 43.300 | M89: 0.2 | N89: 1.381 | O89: 39.200 | P89: 31 | Q89: 17.700 | R89: 1.20
B90: ТТК- 1026 | C90: Биточки рыбные Морячка | F90: 80 | G90: 12.40 | H90: 5.20 | I90: 6.800 | J90: 123.2 | K90: 0.080 | L90: 1.700 | M90: 0.030 | N90: 0.220 | O90: 118.400 | P90: 135.700 | Q90: 12.400 | R90: 0.800
B91: 312/2017 | C91: Картофельное пюре | F91: 180/5 | G91: 3.710 | H91: 9.940 | I91: 26.400 | J91: 206.4 | K91: 0.197 | L91: 9.530 | M91: 0.096 | N91: 0.280 | O91: 57.370 | P91: 118.600 | Q91: 9.600 | R91: 0.000
B92: ТТК №13 | C92: Чай полусладкий с молоком | F92: 200 | G92: 1.630 | H92: 1.250 | I92: 7.180 | J92: 46 | K92: 0.015 | L92: 0.540 | M92: 0.01 | N92: 0.000 | O92: 76.500 | P92: 48.700 | Q92: 8.800 | R92: 0.430
B93: 1/2017 | C93: Хлеб Ржаной | F93: 30 | G93: 1.5 | H93: 0.3 | I93: 13.50 | J93: 66 | K93: 0.021 | L93: 0.00 | M93: 0.00 | N93: 0.162 | O93: 4.14 | P93: 19.10 | Q93: 4.5 | R93: 0.558
B94: 1/2017 | C94: Хлеб Пшеничный | F94: 50 | G94: 3.800 | H94: 0.400 | I94: 24.600 | J94: 118 | K94: 0.055 | L94: 0 | M94: 0 | N94: 0.550 | O94: 10.000 | P94: 32.500 | Q94: 7.000 | R94: 0.550
E95: Итого | G95: =SUM(G89:G94) -> 24.640 | H95: 21.59 | I95: 83.280 | J95: 625.2 | K95: 0.370 | L95: 55.070 | M95: 0.34 | N95: 2.593 | O95: 305.610 | P95: 385.6 | Q95: 60.000 | R95: 3.54
C97: 4 день
B98: 24/2017 | C98: Салат из свежих помидоров и огурцов | F98: 100 | G98: 4.330 | H98: 8.43 | I98: 8.230 | J98: 93.33 | K98: 0.020 | L98: 8.630 | M98: 0 | N98: 2.3 | O98: 42.100 | P98: 31 | Q98: 14.400 | R98: 0.02
B99: ТТК №37 | C99: Котлеты Любимые п/ф с овощами (зеленый горошек консервированный) | F99: 75/25 | G99: 10.250 | H99: 10.550 | I99: 14.400 | J99: 190.30 | K99: 0.060 | L99: 0.035 | M99: 0.162 | N99: 0.850 | O99: 30.550 | P99: 124.370 | Q99: 16.840 | R99: 1.340
B100: 173/2017 | C100: Каша гречневая вязкая | F100: 180/5 | G100: 7.990 | H100: 10.830 | I100: 41.000 | J100: 204 | K100: 0.350 | L100: 0.000 | M100: 0 | N100: 0.621 | O100: 44.800 | P100: 204.700 | Q100: 53.500 | R100: 1.321
B101: 377/2017 | C101: Чай с лимоном (полусладкий) | F101: 200/10/7 | G101: 0.270 | H101: 0.060 | I101: 15.230 | J101: 63 | K101: 0.003 | L101: 2.800 | M101: 0 | N101: 0.014 | O101: 3.250 | P101: 1.540 | Q101: 0.840 | R101: 0.087
B102: 1/2017 | C102: Хлеб Ржаной | F102: 30 | G102: 1.5 | H102: 0.3 | I102: 13.50 | J102: 66 | K102: 0.021 | L102: 0.00 | M102: 0.00 | N102: 0.162 | O102: 4.14 | P102: 19.10 | Q102: 4.5 | R102: 0.558
B103: 1/2017 | C103: Хлеб Пшеничный | F103: 50 | G103: 3.800 | H103: 0.400 | I103: 24.600 | J103: 118 | K103: 0.055 | L103: 0 | M103: 0 | N103: 0.550 | O103: 10.000 | P103: 32.500 | Q103: 7.000 | R103: 0.550
E104: Итого | G104: =SUM(G98:G103) -> 28.14 | H104: 30.570 | I104: 116.960 | J104: 734.93 | K104: 0.509 | L104: 11.465 | M104: 0.162 | N104: 4.497 | O104: 134.840 | P104: 413.21 | Q104: 97.080 | R104: 3.876
C106: 5 день
B107: ТТК №1025 | C107: Салат Радужный | F107: 100 | G107: 2.3 | H107: 5.2 | I107: 9 | J107: 95.3 | K107: 0.25 | L107: 3.5 | M107: 0.004 | N107: 1.3 | O107: 39.7 | P107: 23 | Q107: 33.3 | R107: 5.7
B108: 290/2017 | C108: Мякоть птицы тушенная в соусе | F108: 50/50 | G108: 11.650 | H108: 10.756 | I108: 11.632 | J108: 164 | K108: 0.168 | L108: 6.326 | M108: 0.000 | N108: 0.956 | O108: 85.185 | P108: 163.198 | Q108: 15.716 | R108: 1.800
B109: 174/2017 | C109: Каша рисовая вязкая | F109: 180/5 | G109: 2.770 | H109: 5.000 | I109: 27.600 | J109: 166 | K109: 0.020 | L109: 0.000 | M109: 0.000 | N109: 0.220 | O109: 26.310 | P109: 27.600 | Q109: 29.100 | R109: 1.250
B110: ТТК №1 | C110: Чай полусладкий | F110: 200 | G110: 0.200 | H110: 0.000 | I110: 5.060 | J110: 21.04 | K110: 0.000 | L110: 0.000 | M110: 0.100 | N110: 0.000 | O110: 9.970 | P110: 7.500 | Q110: 6.500 | R110: 0.197
B111: 1/2017 | C111: Хлеб Ржаной | F111: 30 | G111: 1.5 | H111: 0.3 | I111: 13.50 | J111: 66 | K111: 0.021 | L111: 0.00 | M111: 0.00 | N111: 0.162 | O111: 4.14 | P111: 19.10 | Q111: 4.5 | R111: 0.558
B112: 1/2017 | C112: Хлеб Пшеничный | F112: 50 | G112: 3.800 | H112: 0.400 | I112: 24.600 | J112: 118 | K112: 0.055 | L112: 0 | M112: 0 | N112: 0.550 | O112: 10.000 | P112: 32.500 | Q112: 7.000 | R112: 0.550
B113: 338/2017 | C113: Яблоко свежее | F113: 100 | G113: 0.400 | H113: 0.400 | I113: 7.350 | J113: 47 | K113: 0.030 | L113: 8 | M113: 0 | N113: 0.100 | O113: 16.000 | P113: 11.000 | Q113: 9.000 | R113: 0.030
E114: Итого | G114: =SUM(G107:G113) -> 22.62 | H114: 22.056 | I114: 98.742 | J114: 677.54 | K114: 0.544 | L114: 17.826 | M114: 0.104 | N114: 3.288 | O114: 191.305 | P114: 283.898 | Q114: 105.116 | R114: 10.085
C115: 6 день
B116: 20/2017 | C116: Салат из свежих огурцов | F116: 100 | G116: 0.730 | H116: 6 | I116: 2.400 | J116: 66.67 | K116: 0.030 | L116: 9.280 | M116: 0 | N116: 1.381 | O116: 21.300 | P116: 22.3 | Q116: 13.000 | R116: 0.05
B117: 243/2017 | C117: Сосиски отварные | F117: 100 | G117: 7.400 | H117: 10.900 | I117: 0.800 | J117: 260 | K117: 0.030 | L117: 0.000 | M117: 0.000 | N117: 0.956 | O117: 35.000 | P117: 163.198 | Q117: 16.000 | R117: 0.000
B118: 203/2017 | C118: Макароны отварные с маслом | F118: 180/5 | G118: 6.120 | H118: 5.360 | I118: 34.200 | J118: 241.4 | K118: 0.104 | L118: 0.000 | M118: 0.120 | N118: 0.980 | O118: 19.750 | P118: 68.410 | Q118: 10.170 | R118: 1.043
B119: 377/2017 | C119: Чай с лимоном (полусладкий) | F119: 200/10/7 | G119: 0.270 | H119: 0.060 | I119: 15.230 | J119: 63 | K119: 0.003 | L119: 2.800 | M119: 0 | N119: 0.014 | O119: 3.250 | P119: 1.540 | Q119: 0.840 | R119: 0.087
B120: 1/2017 | C120: Хлеб Ржаной | F120: 30 | G120: 1.5 | H120: 0.3 | I120: 13.50 | J120: 66 | K120: 0.021 | L120: 0.00 | M120: 0.00 | N120: 0.162 | O120: 4.14 | P120: 19.10 | Q120: 4.5 | R120: 0.558
B121: 1/2017 | C121: Хлеб Пшеничный | F121: 50 | G121: 3.800 | H121: 0.400 | I121: 24.600 | J121: 118 | K121: 0.055 | L121: 0 | M121: 0 | N121: 0.550 | O121: 10.000 | P121: 32.500 | Q121: 7.000 | R121: 0.550
E122: Итого | G122: =SUM(G116:G121) -> 19.820 | H122: 23.020 | I122: 90.730 | J122: 815.37 | K122: 0.243 | L122: 12.080 | M122: 0.120 | N122: 4.043 | O122: 93.440 | P122: 307.048 | Q122: 51.510 | R122: 2.288
E124: Масса порции, гр | F124: Масса порции, гр | G124: Пищевые вещества (гр) Белки | H124: Пищевые вещества (гр) Жиры | I124: Пищевые вещества (гр) Углеводы | J124: Энерг. ценность (ккал) | K124: Витамины (мг) В1 | L124: Витамины (мг) С | M124: Витамины (мг) А | N124: Витамины (мг) Е | O124: Са, мг | P124: Р, мг | Q124: Mg, мг | R124: Fe, мг
C125: ИТОГО ЗА НЕДЕЛЮ: | G125: =SUM(G78+G86+G95+G104+G114+G122) -> 143.3 | H125: 147.4 | I125: 573.7 | J125: 4213.8 | K125: 2.5 | L125: 113.6 | M125: 4.3 | N125: 19.2 | O125: 1117.7 | P125: 2042.5 | Q125: 488.5 | R125: 28.2
C126: В среднем в день: | G126: 23.90 | H126: 24.60 | I126: 95.62 | J126: 702.30 | K126: 0.42 | L126: 19.00 | M126: 0.72 | N126: 3.20 | O126: 186.28 | P126: 340.40 | Q126: 81.40 | R126: 4.70
E128: Масса порции, гр | F128: Масса порции, гр | G128: Пищевые вещества (гр) Белки | H128: Пищевые вещества (гр) Жиры | I128: Пищевые вещества (гр) Углеводы | J128: Энерг. ценность (ккал) | K128: Витамины (мг) В1 | L128: Витамины (мг) С | M128: Витамины (мг) А | N128: Витамины (мг) Е | O128: Са, мг | P128: Р, мг | Q128: Mg, мг | R128: Fe, мг
C129: ИТОГО ЗА 12 ДНЕЙ: | G129: =SUM(G66+G125) -> 279.3 | H129: =SUM(H66+H125) -> 285.9 | I129: 1132.5 | J129: 8424.4 | K129: 4.6 | L129: 225.8 | M129: 5.3 | N129: 35.3 | O129: 2076.1 | P129: 4081.1 | Q129: 945.2 | R129: 50.0
C130: В среднем в день: | G130: 23.27 | H130: 23.82 | I130: 94.37 | J130: 702.03 | K130: 0.38 | L130: 18.82 | M130: 0.44 | N130: 2.94 | O130: 173.00 | P130: 340.10 | Q130: 78.77 | R130: 4.17
B132: Примечание: при составлении меню использованы
B133: 1. СанПиН 2.3/2.4.3590-20 "Санитарно-эпидемиологические требования к организации общественного питания населения"
B134: 2. Сборник технических нормативов. Сборник рецептур блюд и кулинарных изделий для предприятий общественного питания при общеобразовательных школах. Под общей редакцией
B135: В.Т. Лапшиной, 2004 г. гор.Москва
B136: 3. Сборник технических нормативов –Сборник рецептур блюд и кулинарных изделий для питания детей в дошкольных организациях / под ред. М.П. Могильного и Т.В. Тутельяна. –М.: ДеЛи принт, 2014 г.
B137: 4. Сборник технических нормативов –Сборник рецептур блюд и кулинарных изделий для питания детей в дошкольных организациях / под ред. М.П. Могильного и Т.В. Тутельяна. –М.: ДеЛи принт, 2015 г.
B138: 5. Технико-технологические карты разработанные ООО "Школьное питание"
B140: конт.тел.:8(8552) 707107
